bitfinex-derivatives/quotes_ETHF0:USTF0_20210402
["timestamp","ask_amount","ask_price","bid_price","bid_amount"]
[1617345369289,0.14721008,1990.9,1990.8,64.69985]
[1617345369690,0.14721008,1990.9,1990.8,65.93265]
[1617345370793,0.05888114,1990.9,1990.8,65.93265]
[1617345371496,0.05888114,1990.9,1990.8,64.69985]
[1617345372497,0.05888114,1990.9,1990.8,62.69985]
[1617345373498,0.14723434,1990.9,1990.8,62.69985]
[1617345374302,0.29448679,1990.9,1990.8,62.69985]
[1617345377603,0.14729009,1990.9,1990.8,62.69985]
[1617345378205,0.29458223,1990.9,1990.8,2.90695]
[1617345378404,2.16918223,1990.9,1990.8,2.90695]
[1617345378603,2.34596761,1990.9,1990.8,2.90695]
[1617345379004,1.8746,1990.9,1990.8,2.90695]
[1617345380503,2.58167542,1990.9,1990.8,2.90695]
[1617345380706,1.8746,1990.9,1990.8,76.73195]
[1617345381505,1.8746,1990.9,1990.8,2.90695]
[1617345381709,4.78155,1990.9,1990.8,2.90695]
[1617345381906,5.7244571,1990.9,1990.8,2.90695]
[1617345382322,4.78155,1990.9,1990.8,2.90695]
[1617345383307,5.96028229,1990.9,1990.8,2.90695]
[1617345383505,76.49688229,1990.9,1990.8,2.90695]
[1617345384106,76.50213624,1990.9,1990.8,2.90695]
[1617345384508,77.68094305,1990.9,1990.8,2.90695]
[1617345384907,3.05858624,1990.9,1990.8,2.90695]
[1617345385108,1.18398624,1990.9,1990.8,2.90695]
[1617345385309,2.12691597,1990.9,1990.8,2.90695]
[1617345385709,0.94290791,1991.0,1990.8,2.90695]
[1617345386109,0.70715557,1990.9,1990.8,2.90695]
[1617345387209,0.94288939,1991.0,1990.8,2.90695]
[1617345388110,0.70728422,1990.9,1990.8,2.90695]
[1617345388513,0.94305711,1990.9,1990.8,2.90695]
[1617345390412,1.83093354,1991.0,1990.8,2.90695]
[1617345391313,0.9430637,1990.9,1990.8,2.90695]
[1617345392414,1.83090647,1991.0,1990.8,2.90695]
[1617345397219,0.94303649,1990.9,1990.8,2.90695]
[1617345397420,2.62383649,1990.9,1990.8,2.90695]
[1617345397619,1.6808,1990.9,1990.8,2.90695]
[1617345397818,4.58775,1990.9,1990.8,2.90695]
[1617345398018,5.47569344,1990.9,1990.8,2.90695]
[1617345398619,5.47569344,1990.9,1990.5,84.1903]
[1617345398820,5.47569344,1990.9,1989.4,2.0]
[1617345399018,74.1037,1990.6,1989.5,74.1037]
[1617345399219,0.01473,1989.7,1989.5,74.1037]
[1617345399419,1.86213,1989.7,1989.5,74.1037]
[1617345399817,1.86213,1989.7,1989.6,2.90695]
[1617345401220,1.87687222,1989.7,1989.6,2.90695]
[1617345402422,1.86213963,1989.7,1989.6,2.90695]
[1617345402822,1.87687944,1989.7,1989.6,2.90695]
[1617345403623,1.86213951,1989.7,1989.6,2.90695]
[1617345404224,1.87687989,1989.7,1989.6,2.90695]
[1617345405023,0.02947989,1989.7,1989.6,2.90695]
[1617345407227,0.01473994,1989.7,1989.6,2.90695]
[1617345407428,0.02947435,1989.7,1989.6,2.90695]
[1617345408628,1.87843458,1989.7,1989.6,2.90695]
[1617345408828,66.67193458,1989.7,1989.6,2.90695]
[1617345410032,66.76032567,1989.7,1989.6,2.90695]
[1617345410833,66.64243406,1989.7,1989.6,2.90695]
[1617345411034,66.67183488,1989.7,1989.6,2.90695]
[1617345412834,66.7600363,1989.7,1989.6,2.90695]
[1617345413935,66.67183385,1989.7,1989.6,2.90695]
[1617345414937,66.76006941,1989.7,1989.6,2.90695]
[1617345415637,66.67183058,1989.7,1989.6,2.90695]
[1617345416537,66.76003889,1989.7,1989.6,2.90695]
[1617345417937,66.67182498,1989.7,1989.6,2.90695]
[1617345418337,66.76005724,1989.7,1989.6,2.90695]
[1617345419138,66.67181468,1989.7,1989.6,2.90695]
[1617345420241,66.76002304,1989.7,1989.6,2.90695]
[1617345422141,66.62767793,1989.7,1989.6,2.90695]
[1617345425641,66.613,1989.7,1989.6,2.90695]
[1617345427441,66.613,1989.7,1989.6,4.90695]
[1617345427642,66.613,1989.7,1989.6,2.90695]
[1617345434647,66.62770375,1989.7,1989.6,2.90695]
[1617345435047,66.613,1989.7,1989.6,2.90695]
[1617345435446,66.62770417,1989.7,1989.6,2.90695]
[1617345435848,66.64240854,1989.7,1989.6,2.90695]
[1617345436848,66.62770423,1989.7,1989.6,2.90695]
[1617345438153,1.83420423,1989.7,1989.6,2.90695]
[1617345438552,1.84890964,1989.7,1989.6,2.90695]
[1617345439954,1.8195,1989.7,1989.6,2.90695]
[1617345440155,1.42482371,1989.7,1989.6,2.90695]
[1617345440655,1.3954103,1989.7,1989.6,2.90695]
[1617345441655,1.38070069,1989.7,1989.6,2.90695]
[1617345442759,1.39540166,1989.7,1989.6,2.90695]
[1617345444660,1.42483207,1989.7,1989.6,2.90695]
[1617345445460,1.51308178,1989.7,1989.6,2.90695]
[1617345446962,1.42483209,1989.7,1989.6,2.90695]
[1617345447361,1.51308626,1989.7,1989.3,1.0]
[1617345447561,3.51308626,1989.7,1989.3,1.0]
[1617345447762,30.0,1989.6,1989.3,1.0]
[1617345447964,2.0,1989.5,1987.7,66.8144]
[1617345448165,2.90695,1988.4,1987.7,66.8144]
[1617345448361,4.68365,1988.4,1987.7,66.8144]
[1617345448961,0.0146963,1988.3,1987.7,66.8144]
[1617345449161,0.01469188,1988.2,1987.7,66.8144]
[1617345449362,0.01469188,1988.2,1986.9,30.0]
[1617345449363,0.01469188,1988.2,1986.7,2.0]
[1617345449562,73.5959,1986.9,1986.7,2.0]
[1617345449761,1.5311,1986.9,1986.7,2.0]
[1617345449962,73.6033,1986.8,1986.7,2.0]
[1617345450161,73.6033,1986.8,1986.7,4.90695]
[1617345450561,73.6033,1986.8,1986.7,5.91585]
[1617345451364,73.6033,1986.8,1986.2,0.992]
[1617345451564,30.0,1986.8,1986.2,0.992]
[1617345451966,30.0,1986.8,1985.8,1.02]
[1617345452164,30.0,1986.8,1986.2,2.90695]
[1617345452165,0.01464003,1986.7,1986.2,2.90695]
[1617345452366,2.01464003,1986.7,1985.2,1.0063]
[1617345452566,81.4794,1984.8,1984.3,0.9978]
[1617345452766,113.0357,1984.8,1984.3,0.9978]
[1617345452966,113.0357,1984.8,1984.0,4.0]
[1617345453165,1.5563,1984.8,1981.9,2.0]
[1617345453367,81.4971,1983.4,1981.4,9.0206]
[1617345453567,1.7003,1983.4,1981.4,9.0206]
[1617345453766,66.1304,1982.2,1981.4,9.0206]
[1617345453966,67.3613,1982.2,1981.4,9.0206]
[1617345454165,67.3613,1982.2,1982.1,2.90695]
[1617345454366,1.2309,1982.2,1982.1,2.90695]
[1617345455165,1.7003,1983.4,1982.1,2.90695]
[1617345455565,75.5929,1983.7,1982.1,2.90695]
[1617345455767,2.0,1985.9,1982.1,32.90695]
[1617345455966,70.9286,1984.4,1982.5,70.9286]
[1617345456165,101.38421296,1986.7,1982.1,32.90695]
[1617345456166,0.01440976,1986.6,1982.1,32.90695]
[1617345456369,1.9191,1984.4,1984.3,2.90695]
[1617345458969,1.9191,1984.4,1982.1,2.0]
[1617345459170,1.9191,1984.4,1982.6,72.4669]
[1617345459369,72.4669,1984.9,1982.6,74.4669]
[1617345459573,72.4669,1984.9,1982.6,75.7901]
[1617345460371,72.4669,1984.9,1984.8,2.90695]
[1617345460971,72.4669,1984.9,1983.2,1.7024]
[1617345461171,73.7644,1984.9,1982.6,73.7901]
[1617345461373,73.7644,1984.9,1982.6,72.4669]
[1617345462376,1.2975,1984.9,1982.6,30.0]
[1617345462574,63.0264,1983.6,1981.7,1.0226]
[1617345463375,63.0264,1983.6,1981.7,2.0464]
[1617345464174,63.0264,1983.6,1981.2,63.0264]
[1617345464375,63.0264,1983.6,1983.5,2.90695]
[1617345464574,63.0264,1983.6,1981.5,2.0]
[1617345466277,63.0264,1983.6,1981.4,8.0]
[1617345466478,1.2624,1983.6,1981.4,8.0]
[1617345466680,76.0005,1982.5,1981.4,8.0]
[1617345468280,76.0005,1982.5,1982.4,2.90695]
[1617345468479,2.90695,1982.7,1982.4,2.90695]
[1617345469880,32.90695,1982.7,1982.4,2.90695]
[1617345470280,2.90695,1982.5,1982.4,2.90695]
[1617345470480,4.37055,1982.5,1982.4,2.90695]
[1617345470882,4.37055,1982.5,1981.4,8.0]
[1617345471080,83.3448,1981.5,1981.4,8.0]
[1617345472284,83.3448,1981.5,1981.4,10.90695]
[1617345473087,1.82,1981.6,1981.4,10.90695]
[1617345473288,72.5517,1982.8,1981.4,10.90695]
[1617345473691,72.5517,1982.8,1981.4,2.90695]
[1617345474293,72.5517,1982.8,1982.7,2.90695]
[1617345474693,13.8351,1984.1,1982.7,2.90695]
[1617345474894,73.0322,1983.9,1982.7,4.34365]
[1617345475895,2.52242435,1984.2,1982.7,4.34365]
[1617345476095,0.50292339,1988.4,1982.7,4.34365]
[1617345476096,30.0,1984.1,1982.7,2.90695]
[1617345476295,30.0,1984.1,1983.0,2.90695]
[1617345476898,30.0,1983.4,1981.4,8.0]
[1617345477097,70.3149,1982.3,1981.4,8.0]
[1617345478297,70.3149,1982.3,1982.2,2.90695]
[1617345479098,70.3149,1982.3,1981.4,8.0]
[1617345480299,70.3149,1982.3,1981.9,2.90695]
[1617345482503,30.0,1983.0,1982.1,2.90695]
[1617345482705,97.9593,1983.0,1982.1,2.90695]
[1617345482910,67.9593,1983.0,1982.1,2.90695]
[1617345483701,14.7419,1983.5,1982.1,2.90695]
[1617345484100,72.2707,1982.8,1982.1,2.90695]
[1617345484501,2.90695,1983.3,1982.7,2.90695]
[1617345484702,0.02827507,1988.3,1982.7,4.47455]
[1617345484703,71.5276,1984.0,1982.7,4.47455]
[1617345484902,2.7579,1986.3,1982.8,30.0]
[1617345485102,2.7579,1986.3,1982.8,101.5056]
[1617345485103,71.5056,1985.3,1982.8,101.5056]
[1617345485302,2.0,1985.2,1982.8,71.5056]
[1617345485503,101.5056,1985.3,1982.8,71.5056]
[1617345485705,30.0,1985.1,1982.8,71.5056]
[1617345486402,2.0,1985.0,1984.0,2.90695]
[1617345486603,30.0,1985.0,1984.0,4.20835]
[1617345487003,101.5056,1985.3,1984.0,4.20835]
[1617345487203,30.0,1985.3,1984.0,4.20835]
[1617345487404,2.52121603,1985.2,1984.0,4.20835]
[1617345488411,2.52121603,1985.2,1984.7,2.90695]
[1617345488624,2.52121603,1985.2,1984.7,4.68525]
[1617345489807,2.52121603,1985.2,1984.7,1.7783]
[1617345490207,32.0,1985.6,1984.7,1.7783]
[1617345490407,2.90695,1984.8,1984.7,1.7783]
[1617345490813,2.0,1986.0,1984.7,1.7783]
[1617345491614,30.0,1985.9,1984.7,1.7783]
[1617345492023,2.0,1986.0,1984.7,1.7783]
[1617345492440,2.0,1986.0,1985.2,2.90695]
[1617345492818,14.4886,1986.1,1985.2,2.90695]
[1617345494415,2.90695,1985.5,1985.2,2.90695]
[1617345495016,2.90695,1985.5,1983.6,100.0261]
[1617345495418,2.90695,1985.5,1983.6,70.0261]
[1617345495620,4.90695,1985.5,1983.6,70.0261]
[1617345495819,2.90695,1985.5,1983.6,70.0261]
[1617345496017,32.90695,1985.5,1983.6,70.0261]
[1617345496221,2.90695,1985.5,1983.7,2.0]
[1617345496419,71.7136,1985.7,1985.0,2.90695]
[1617345496619,70.0261,1985.7,1985.0,2.90695]
[1617345497420,100.0261,1985.7,1985.0,2.90695]
[1617345498020,100.0261,1985.7,1983.7,1.942]
[1617345498221,2.0,1985.6,1983.6,70.0261]
[1617345498422,30.0,1985.5,1984.2,2.90695]
[1617345498623,2.0,1985.4,1984.2,2.90695]
[1617345498824,30.0,1985.3,1984.2,2.90695]
[1617345499022,2.0,1985.2,1983.6,70.0261]
[1617345499221,30.0,1985.1,1983.6,70.0261]
[1617345499421,32.0,1985.1,1983.6,70.0261]
[1617345500524,32.0,1985.1,1984.0,2.90695]
[1617345501724,32.0,1985.1,1983.6,70.0261]
[1617345502125,30.0,1985.0,1983.6,70.0261]
[1617345502325,2.0,1984.9,1983.6,70.0261]
[1617345502526,2.90695,1983.7,1983.6,70.0261]
[1617345502725,2.90695,1983.7,1983.2,2.90695]
[1617345502726,4.61725,1983.7,1983.2,2.90695]
[1617345504526,1.7103,1983.7,1983.6,2.90695]
[1617345505526,1.7103,1983.7,1982.3,77.6272]
[1617345506528,1.7103,1983.7,1983.1,2.90695]
[1617345507126,1.7103,1983.7,1982.3,77.6272]
[1617345507927,32.0,1984.1,1982.3,77.6272]
[1617345508628,2.90695,1982.4,1982.3,80.53415]
[1617345508828,4.78245,1982.4,1982.3,2.90695]
[1617345513734,1.8755,1982.4,1982.3,2.90695]
[1617345513936,95.7163,1983.1,1982.3,2.90695]
[1617345514554,2.90695,1982.4,1982.3,2.90695]
[1617345514747,4.66925,1982.4,1982.3,2.90695]
[1617345517847,2.90695,1982.4,1982.3,2.90695]
[1617345518649,2.90695,1982.6,1982.3,2.90695]
[1617345518851,1.4962,1982.4,1982.3,2.90695]
[1617345519448,1.4962,1982.4,1982.3,84.39245]
[1617345519848,2.90695,1982.6,1982.3,84.39245]
[1617345520650,2.90695,1983.5,1982.5,2.90695]
[1617345520850,2.90695,1983.5,1982.5,4.29225]
[1617345522658,2.90695,1983.5,1983.4,2.90695]
[1617345523260,13.5597,1984.0,1983.4,2.90695]
[1617345524060,43.5597,1984.0,1983.4,2.90695]
[1617345524661,13.5597,1984.0,1983.6,2.90695]
[1617345526064,57.9635,1984.7,1983.6,2.90695]
[1617345526662,59.9635,1984.7,1983.8,2.90695]
[1617345526862,59.9635,1984.7,1983.0,57.9635]
[1617345527066,91.678,1984.7,1983.0,57.9635]
[1617345527263,61.678,1984.7,1983.0,57.9635]
[1617345527463,59.678,1984.7,1983.0,57.9635]
[1617345528266,61.678,1984.7,1983.0,57.9635]
[1617345528668,59.678,1984.7,1983.8,2.90695]
[1617345528866,57.9635,1984.7,1983.8,2.90695]
[1617345530672,57.9635,1984.7,1984.0,2.90695]
[1617345532675,60.87045,1984.7,1984.6,2.90695]
[1617345532878,2.90695,1984.7,1984.6,4.88795]
[1617345534079,28.1691,1985.6,1984.6,4.88795]
[1617345534279,14.1809,1985.6,1984.6,4.88795]
[1617345534678,14.1809,1985.6,1985.5,2.90695]
[1617345536682,17.08785,1985.6,1985.5,2.90695]
[1617345537483,2.90695,1985.6,1985.5,2.90695]
[1617345538283,0.01451099,1986.2,1985.5,2.90695]
[1617345538882,0.01451099,1986.2,1985.7,2.90695]
[1617345539987,0.01450987,1986.3,1985.7,2.90695]
[1617345540786,0.01451681,1986.4,1986.1,2.90695]
[1617345542788,0.01451681,1986.4,1986.3,2.90695]
[1617345542989,0.46610505,1986.4,1986.3,2.90695]
[1617345543989,0.75716551,1986.4,1986.3,2.90695]
[1617345544188,0.29106046,1986.4,1986.3,2.90695]
[1617345544389,0.05821897,1986.4,1986.3,2.90695]
[1617345546189,0.02911845,1986.4,1986.3,2.90695]
[1617345546390,2.90695,1986.5,1986.3,2.90695]
[1617345546790,2.90695,1986.5,1986.3,4.27565]
[1617345547691,0.01452412,1986.8,1986.3,4.27565]
[1617345548292,0.01452914,1986.9,1986.3,4.27565]
[1617345548491,0.0145345,1987.1,1986.3,4.27565]
[1617345548891,0.0145345,1987.1,1987.0,2.90695]
[1617345550794,0.01453515,1987.2,1987.0,2.90695]
[1617345550991,2.90695,1987.1,1987.0,2.90695]
[1617345551192,2.92148435,1987.1,1987.0,2.90695]
[1617345551794,0.01453435,1987.1,1987.0,2.90695]
[1617345553397,10.01453435,1987.1,1987.0,2.90695]
[1617345553897,10.0,1987.1,1987.0,2.90695]
[1617345560911,10.0,1987.1,1985.7,2.0]
[1617345561114,10.0,1987.1,1986.7,2.90695]
[1617345562312,78.6739,1987.1,1986.7,2.90695]
[1617345563111,2.90695,1986.8,1986.7,2.90695]
[1617345563911,4.88225,1986.8,1986.7,2.90695]
[1617345564934,2.90695,1986.8,1986.7,2.90695]
[1617345574124,4.49705,1986.8,1986.7,2.90695]
[1617345575429,19.49705,1986.8,1986.7,2.90695]
[1617345594344,16.5901,1986.8,1986.7,2.90695]
[1617345598152,15.0,1986.8,1986.7,4.90695]
[1617345598950,15.0,1986.8,1986.7,75.86905]
[1617345599350,15.0,1986.8,1986.7,105.86905]
[1617345602156,6.6568,1986.8,1986.7,105.86905]
[1617345612067,6.6568,1986.8,1986.7,34.90695]
[1617345614369,6.6568,1986.8,1986.7,110.43665]
[1617345616672,6.6568,1986.8,1986.7,34.90695]
[1617345624981,6.6568,1986.8,1986.7,4.90695]
[1617345625181,6.6568,1986.8,1986.7,2.90695]
[1617345637797,6.67138164,1986.8,1986.7,2.90695]
[1617345640499,6.6568,1986.8,1986.7,2.90695]
[1617345642099,6.67138128,1986.8,1986.7,2.90695]
[1617345642500,8.71510448,1986.8,1986.7,2.90695]
[1617345642899,8.71510448,1986.8,1986.0,75.9203]
[1617345643100,0.01457192,1986.5,1986.0,75.9203]
[1617345643300,1.92167192,1986.5,1984.6,30.0]
[1617345643502,63.77037046,1986.4,1984.9,63.7558]
[1617345643901,63.77037046,1986.4,1986.0,2.90695]
[1617345644302,0.0145681,1986.3,1986.0,2.90695]
[1617345644702,0.01457371,1986.2,1986.0,2.90695]
[1617345645101,0.01457371,1986.2,1984.9,63.7558]
[1617345645502,0.01456939,1986.0,1984.9,63.7558]
[1617345645700,1.71606939,1986.0,1984.9,63.7558]
[1617345645901,0.01456573,1985.8,1985.4,2.90695]
[1617345646905,0.0145746,1985.9,1985.4,2.90695]
[1617345647907,0.0145746,1985.9,1985.8,2.90695]
[1617345648107,0.01458221,1986.1,1985.8,2.90695]
[1617345648307,2.92152014,1986.3,1985.8,2.90695]
[1617345648708,0.01456757,1986.2,1985.8,2.90695]
[1617345649109,0.01456497,1986.1,1985.8,2.90695]
[1617345649312,1.91956497,1986.1,1985.8,2.90695]
[1617345649509,1.905,1986.1,1985.8,2.90695]
[1617345649809,1.91956338,1986.1,1985.8,2.90695]
[1617345650007,1.91956338,1986.1,1986.0,2.90695]
[1617345651617,0.01456577,1986.2,1986.0,2.90695]
[1617345652020,2.92151577,1986.2,1986.0,2.90695]
[1617345652418,0.01456715,1986.3,1986.0,2.90695]
[1617345653238,0.01457162,1986.4,1986.0,72.17995]
[1617345653630,0.01457576,1986.5,1986.0,72.17995]
[1617345653826,0.02915151,1986.6,1986.0,72.17995]
[1617345653827,0.01457845,1986.6,1986.0,72.17995]
[1617345654025,0.01457845,1986.6,1986.5,2.90695]
[1617345654222,0.01457848,1986.7,1986.5,2.90695]
[1617345656023,6.67137574,1986.8,1986.5,2.90695]
[1617345657425,0.01456797,1986.7,1986.5,2.90695]
[1617345658125,2.90695,1986.6,1986.5,2.90695]
[1617345658326,4.36295,1986.6,1986.5,2.90695]
[1617345658726,4.37751731,1986.6,1986.5,2.90695]
[1617345659128,4.36295,1986.6,1986.5,2.90695]
[1617345659327,2.90695,1986.6,1986.5,2.90695]
[1617345660429,2.92152495,1986.6,1986.5,2.90695]
[1617345660831,2.90695,1986.6,1986.5,2.90695]
[1617345661527,2.92152408,1986.6,1986.5,2.90695]
[1617345661727,4.71392408,1986.6,1986.5,2.90695]
[1617345662830,4.7284918,1986.6,1986.5,2.90695]
[1617345663230,4.7139238,1986.6,1986.5,2.90695]
[1617345664929,2.9215238,1986.6,1986.5,2.90695]
[1617345665230,2.90695,1986.6,1986.5,2.90695]
[1617345665629,2.92152264,1986.6,1986.5,2.90695]
[1617345666930,2.90695,1986.6,1986.5,2.90695]
[1617345674341,2.9214862,1986.6,1986.5,2.90695]
[1617345675343,2.9214862,1986.6,1986.0,69.273]
[1617345675543,2.9214862,1986.6,1984.7,2.0]
[1617345675748,2.9214862,1986.6,1985.1,70.8376]
[1617345675749,70.8376,1986.3,1985.1,70.8376]
[1617345675947,72.7174,1986.3,1985.1,70.8376]
[1617345676148,72.73192555,1986.3,1985.1,70.8376]
[1617345676347,72.73192555,1986.3,1986.0,2.90695]
[1617345678248,2.90695,1986.1,1986.0,2.90695]
[1617345680049,2.90695,1986.1,1985.6,76.3884]
[1617345680249,2.90695,1985.7,1985.6,79.29535]
[1617345680449,4.40175,1985.7,1983.9,2.0]
[1617345680650,4.40175,1985.7,1984.8,62.066]
[1617345681050,1.4948,1985.7,1984.8,62.066]
[1617345682250,1.4948,1985.7,1985.6,2.90695]
[1617345682751,1.4948,1985.7,1985.3,76.8611]
[1617345684350,1.4948,1985.7,1985.4,2.90695]
[1617345685452,1.4948,1985.7,1985.3,76.8611]
[1617345685652,1.8938,1985.7,1985.3,76.8611]
[1617345686152,1.8938,1985.7,1984.0,2.0]
[1617345686354,64.1202,1985.5,1985.1,2.90695]
[1617345686553,2.0,1985.4,1985.1,2.90695]
[1617345686752,32.0,1985.4,1985.1,2.90695]
[1617345686953,2.0,1985.4,1985.1,2.90695]
[1617345687152,32.0,1985.4,1985.1,2.90695]
[1617345687354,32.0,1985.4,1984.0,64.1202]
[1617345688352,32.0,1985.4,1984.7,2.90695]
[1617345690454,2.90695,1984.8,1984.7,2.90695]
[1617345690655,4.51955,1984.8,1984.7,2.90695]
[1617345699271,2.90695,1984.8,1984.7,2.90695]
[1617345699886,2.01443869,1985.8,1984.8,71.0718]
[1617345700081,2.0,1985.8,1984.8,71.0718]
[1617345700471,2.0,1985.8,1985.4,2.90695]
[1617345701468,13.9842,1985.9,1985.4,2.90695]
[1617345702068,43.9842,1985.9,1984.8,71.0718]
[1617345702470,43.9842,1985.9,1985.0,2.90695]
[1617345704273,43.9842,1985.9,1984.8,71.0718]
[1617345704474,2.90695,1984.9,1984.8,71.0718]
[1617345704673,2.90695,1984.9,1984.7,2.90695]
[1617345704873,2.90695,1984.9,1984.7,60.78615]
[1617345705774,2.90695,1984.9,1984.7,2.90695]
[1617345707078,2.90695,1984.9,1983.5,2.0]
[1617345707277,32.90695,1984.9,1982.7,30.0]
[1617345707478,57.5126,1983.9,1982.8,2.0]
[1617345707679,58.9093,1983.9,1982.8,2.0]
[1617345708477,2.90695,1983.7,1983.6,2.90695]
[1617345709077,2.90695,1983.7,1981.8,104.0976]
[1617345709479,67.388,1982.7,1981.8,104.0976]
[1617345709679,69.091,1982.7,1981.8,104.0976]
[1617345710479,69.091,1982.7,1982.6,2.90695]
[1617345711379,67.388,1982.7,1982.6,2.90695]
[1617345712685,77.7897,1982.7,1982.6,2.90695]
[1617345715188,77.7897,1982.7,1982.6,4.90695]
[1617345715688,2.90695,1982.9,1982.6,2.90695]
[1617345716489,2.90695,1982.7,1982.6,2.90695]
[1617345716689,4.23065,1982.7,1982.6,2.90695]
[1617345717689,66.60685,1982.7,1982.6,2.90695]
[1617345719193,4.23065,1982.7,1982.6,2.90695]
[1617345719595,14.6023,1983.5,1982.6,2.90695]
[1617345719796,69.584,1983.4,1982.6,2.90695]
[1617345720599,69.584,1983.4,1983.1,2.90695]
[1617345722402,69.584,1983.4,1983.1,4.12835]
[1617345722601,69.584,1983.4,1983.3,2.90695]
[1617345723301,14.6023,1983.5,1983.3,2.90695]
[1617345723701,2.90695,1983.6,1983.3,2.90695]
[1617345724600,2.90695,1983.6,1983.5,2.90695]
[1617345724802,2.90695,1983.6,1983.5,4.39085]
[1617345725602,2.90695,1983.6,1983.5,1.4839]
[1617345725803,74.7421,1983.5,1982.1,74.7293]
[1617345726603,74.7421,1983.5,1982.8,2.90695]
[1617345726804,74.7421,1983.5,1982.1,74.7293]
[1617345728104,104.7421,1983.5,1982.1,74.7293]
[1617345728506,106.7421,1983.5,1982.1,74.7293]
[1617345728708,106.7421,1983.5,1982.3,2.90695]
[1617345730007,76.7421,1983.5,1982.3,2.90695]
[1617345730608,2.90695,1982.4,1982.3,2.90695]
[1617345734611,2.90695,1982.4,1982.1,2.90695]
[1617345736614,62.2333,1982.5,1982.1,2.90695]
[1617345736615,2.90695,1982.2,1982.1,2.90695]
[1617345737014,4.60115,1982.2,1982.1,2.90695]
[1617345741518,2.90695,1982.2,1982.1,2.90695]
[1617345742117,4.66045,1982.2,1982.1,2.90695]
[1617345745523,76.5259,1981.8,1980.8,32.0]
[1617345745721,78.235,1981.8,1980.8,32.0]
[1617345745922,78.235,1981.8,1980.8,2.0]
[1617345746521,78.235,1981.8,1980.9,2.0]
[1617345746721,81.14195,1981.8,1981.7,2.90695]
[1617345748225,4.61605,1981.8,1981.7,2.90695]
[1617345749025,2.90695,1981.8,1981.7,2.90695]
[1617345750826,62.65485,1981.8,1981.7,2.90695]
[1617345751825,4.30355,1981.8,1981.7,2.90695]
[1617345752025,4.30355,1981.8,1980.3,32.0]
[1617345752226,59.394,1981.0,1980.3,32.0]
[1617345752426,60.8786,1981.0,1980.3,32.0]
[1617345752826,60.8786,1981.0,1980.9,2.90695]
[1617345753426,1.4846,1981.0,1980.1,2.0]
[1617345754428,1.4846,1981.0,1980.3,73.7455]
[1617345754830,2.90695,1981.1,1980.9,2.90695]
[1617345756830,2.90695,1981.1,1980.7,2.90695]
[1617345758831,2.90695,1981.1,1981.0,2.90695]
[1617345763638,13.7074,1981.8,1981.1,74.1904]
[1617345764239,74.1904,1982.4,1981.1,74.1904]
[1617345764539,74.1904,1982.4,1981.2,2.0]
[1617345764940,13.6857,1983.0,1982.1,2.90695]
[1617345765140,13.6857,1983.0,1982.1,85.29595]
[1617345766842,13.6857,1983.0,1982.5,2.90695]
[1617345767742,13.6857,1983.0,1982.5,4.15815]
[1617345768943,2.90695,1982.6,1982.5,4.15815]
[1617345769553,13.6857,1983.0,1982.5,4.15815]
[1617345769761,30.0,1983.3,1982.6,84.5933]
[1617345769952,30.0,1983.4,1982.6,84.5933]
[1617345770155,98.1765,1984.3,1982.6,84.5933]
[1617345770349,98.1765,1984.3,1982.6,86.5933]
[1617345770750,98.1765,1984.3,1982.7,30.0]
[1617345770967,98.1765,1984.3,1983.1,2.90695]
[1617345771155,98.1765,1984.3,1983.1,4.22615]
[1617345771753,13.5832,1984.3,1983.1,4.22615]
[1617345772345,13.5832,1984.3,1983.6,56.8166]
[1617345772545,13.5832,1984.3,1983.6,58.2396]
[1617345772951,2.90695,1983.7,1983.6,61.14655]
[1617345773151,13.5832,1984.3,1983.6,61.14655]
[1617345773750,13.5832,1984.3,1983.6,34.32995]
[1617345774153,0.01438429,1985.4,1984.5,60.2604]
[1617345774351,0.01439039,1985.6,1984.5,61.985]
[1617345774752,0.01439549,1985.8,1984.5,61.985]
[1617345774952,62.27480007,1985.9,1984.7,2.90695]
[1617345775151,92.27480007,1985.9,1984.7,2.90695]
[1617345775351,0.01439882,1985.8,1984.7,2.90695]
[1617345776656,0.01439842,1985.7,1984.7,2.90695]
[1617345776853,2.90695,1984.8,1984.7,2.90695]
[1617345778057,60.27480584,1985.9,1984.7,2.90695]
[1617345778456,60.2604,1985.9,1984.7,2.90695]
[1617345778655,60.2604,1985.9,1984.7,4.23655]
[1617345778855,60.2604,1985.9,1985.6,2.90695]
[1617345779056,13.94932347,1986.2,1985.6,2.90695]
[1617345779256,13.94932347,1986.2,1985.6,66.39625]
[1617345779456,13.9349,1986.2,1985.6,66.39625]
[1617345780955,2.90695,1985.7,1985.6,66.39625]
[1617345781758,2.90695,1985.7,1985.6,63.4893]
[1617345782157,2.90695,1985.7,1985.6,1.9451]
[1617345782357,2.90695,1985.7,1984.8,64.1602]
[1617345782957,2.0,1985.6,1984.9,2.90695]
[1617345784458,32.0,1985.6,1984.9,2.90695]
[1617345784658,75.9925,1985.5,1983.7,75.9925]
[1617345784858,30.0,1985.4,1984.3,2.90695]
[1617345785058,31.2522,1985.4,1984.3,2.90695]
[1617345785259,75.9925,1985.1,1984.3,2.90695]
[1617345785458,2.0,1985.0,1984.3,2.90695]
[1617345785658,1.5113,1985.0,1984.3,2.90695]
[1617345786058,1.5113,1985.0,1984.5,59.1999]
[1617345787059,1.5113,1985.0,1984.9,2.90695]
[1617345787260,1.2522,1985.4,1984.9,2.90695]
[1617345788763,1.2522,1985.4,1984.5,59.1999]